[Event "*** Titled Tuesday Blitz"]
[Site "Chess.com"]
[Date "2020.05.19"]
[Round "1"]
[White "IAgrest"]
[Black "antoszu"]
[Result "0-1"]
[WhiteElo "2244"]
[BlackElo "2553"]
[TimeControl "180+1"]
[EndTime "12:06:02 PDT"]
[Termination "antoszu won on time"]

1. e4 {[%clk 0:03:00.9]} 1... c5 {[%clk 0:02:59.6]} 2. Nf3 {[%clk 0:03:00.4]}
2... e6 {[%clk 0:02:59.8]} 3. d4 {[%clk 0:03:00.7]} 3... cxd4 {[%clk 0:03:00.7]}
4. Nxd4 {[%clk 0:03:01.3]} 4... a6 {[%clk 0:03:01.4]} 5. Bd3 {[%clk 0:03:00]}
5... Qc7 {[%clk 0:03:01.1]} 6. O-O {[%clk 0:02:58.9]} 6... Nf6 {[%clk
0:03:01.5]} 7. c4 {[%clk 0:02:56.3]} 7... d6 {[%clk 0:03:01.3]} 8. Nc3 {[%clk
0:02:56]} 8... g6 {[%clk 0:03:01.4]} 9. Be3 {[%clk 0:02:51.5]} 9... Bg7 {[%clk
0:03:01.5]} 10. Rc1 {[%clk 0:02:51.6]} 10... O-O {[%clk 0:03:00.5]} 11. b3
{[%clk 0:02:50.2]} 11... Nbd7 {[%clk 0:03:00.8]} 12. Bb1 {[%clk 0:02:49.4]}
12... b6 {[%clk 0:03:00.9]} 13. f3 {[%clk 0:02:42.1]} 13... Bb7 {[%clk
0:03:00.8]} 14. Qd2 {[%clk 0:02:41.6]} 14... Rfe8 {[%clk 0:02:59.7]} 15. Rfd1
{[%clk 0:02:40.5]} 15... Rac8 {[%clk 0:02:58.6]} 16. Kh1 {[%clk 0:02:40]} 16...
Qb8 {[%clk 0:02:55.8]} 17. a4 {[%clk 0:02:32]} 17... Nc5 {[%clk 0:02:48.3]} 18.
b4 {[%clk 0:02:28.5]} 18... Ncd7 {[%clk 0:02:48.3]} 19. Ba2 {[%clk 0:01:37.6]}
19... Ne5 {[%clk 0:02:43.2]} 20. Qf2 {[%clk 0:01:13.9]} 20... Nxc4 {[%clk
0:02:33.4]} 21. b5 {[%clk 0:01:00.7]} 21... Nxe3 {[%clk 0:02:25.3]} 22. Qxe3
{[%clk 0:00:59.4]} 22... a5 {[%clk 0:02:24.1]} 23. Nce2 {[%clk 0:00:48.9]} 23...
Nd7 {[%clk 0:02:05.6]} 24. Rxc8 {[%clk 0:00:19.6]} 24... Rxc8 {[%clk 0:02:04.6]}
25. h3 {[%clk 0:00:19.1]} 25... Nc5 {[%clk 0:02:03.7]} 26. Qa3 {[%clk
0:00:15.8]} 26... d5 {[%clk 0:01:46.7]} 27. exd5 {[%clk 0:00:14.2]} 27... exd5
{[%clk 0:01:47.6]} 28. Nc3 {[%clk 0:00:09.8]} 28... Qe5 {[%clk 0:01:31.9]} 29.
Nce2 {[%clk 0:00:07.7]} 29... Bf8 {[%clk 0:01:25.3]} 30. Qc1 {[%clk 0:00:01.9]}
30... Ne4 {[%clk 0:01:20.8]} 31. Qe3 {[%clk 0:00:01.2]} 31... Ng3+ {[%clk
0:01:20.4]} 0-1

[Event "*** Titled Tuesday Blitz"]
[Site "Chess.com"]
[Date "2020.05.19"]
[Round "1"]
[White "stoleriu"]
[Black "fridaywins"]
[Result "1-0"]
[WhiteElo "2554"]
[BlackElo "2246"]
[TimeControl "180+1"]
[EndTime "12:06:05 PDT"]
[Termination "stoleriu won by resignation"]

1. e4 {[%clk 0:03:00.9]} 1... e5 {[%clk 0:02:59.2]} 2. Nf3 {[%clk 0:03:00.9]}
2... Nc6 {[%clk 0:02:58.4]} 3. Bb5 {[%clk 0:03:01.2]} 3... a6 {[%clk 0:02:58.3]}
4. Ba4 {[%clk 0:03:01.4]} 4... Nf6 {[%clk 0:02:58.3]} 5. d3 {[%clk 0:03:01.4]}
5... b5 {[%clk 0:02:49.3]} 6. Bb3 {[%clk 0:03:01.5]} 6... Be7 {[%clk 0:02:49.1]}
7. O-O {[%clk 0:03:00.3]} 7... O-O {[%clk 0:02:48.4]} 8. Re1 {[%clk 0:02:59.8]}
8... d6 {[%clk 0:02:44.4]} 9. c3 {[%clk 0:02:59]} 9... Na5 {[%clk 0:02:43.8]}
10. Bc2 {[%clk 0:02:59]} 10... c5 {[%clk 0:02:44.4]} 11. Nbd2 {[%clk 0:02:58.4]}
11... Nd7 {[%clk 0:02:43.1]} 12. Nf1 {[%clk 0:02:53.4]} 12... Nb6 {[%clk
0:02:41.1]} 13. Ng3 {[%clk 0:02:50.8]} 13... Nc6 {[%clk 0:02:40.6]} 14. h3
{[%clk 0:02:50.3]} 14... a5 {[%clk 0:02:40]} 15. Nh2 {[%clk 0:02:43.3]} 15... b4
{[%clk 0:02:37]} 16. Qf3 {[%clk 0:02:40]} 16... a4 {[%clk 0:02:35.7]} 17. a3
{[%clk 0:02:36.4]} 17... b3 {[%clk 0:02:28.3]} 18. Bd1 {[%clk 0:02:36]} 18...
Bg5 {[%clk 0:02:24.4]} 19. Bxg5 {[%clk 0:02:16.1]} 19... Qxg5 {[%clk 0:02:23.1]}
20. Ngf1 {[%clk 0:02:17]} 20... Ba6 {[%clk 0:01:59.2]} 21. Be2 {[%clk
0:02:10.6]} 21... Qf4 {[%clk 0:01:32.2]} 22. Ne3 {[%clk 0:01:50]} 22... Qxf3
{[%clk 0:01:29.2]} 23. Nxf3 {[%clk 0:01:50.9]} 23... g6 {[%clk 0:01:29.3]} 24.
Rad1 {[%clk 0:01:30.2]} 24... Kg7 {[%clk 0:01:20.3]} 25. Nc4 {[%clk 0:01:22.9]}
25... Bxc4 {[%clk 0:01:08.5]} 26. dxc4 {[%clk 0:01:23.8]} 26... Rfd8 {[%clk
0:01:08]} 27. Bd3 {[%clk 0:01:11.4]} 27... Na5 {[%clk 0:01:07.7]} 28. Nd2 {[%clk
0:01:11.7]} 28... Ra7 {[%clk 0:01:07.2]} 29. Re3 {[%clk 0:01:07.1]} 29... Re7
{[%clk 0:01:05.7]} 30. Rf3 {[%clk 0:01:06.3]} 30... Rf8 {[%clk 0:01:02.1]} 31.
Re1 {[%clk 0:01:06.4]} 31... f6 {[%clk 0:01:02]} 32. Kh2 {[%clk 0:01:04.7]}
32... Ref7 {[%clk 0:01:02.2]} 33. g4 {[%clk 0:00:54.8]} 33... h5 {[%clk
0:00:53.9]} 34. gxh5 {[%clk 0:00:53.5]} 34... gxh5 {[%clk 0:00:54]} 35. Rg1+
{[%clk 0:00:54.2]} 35... Kh7 {[%clk 0:00:51]} 36. Rf5 {[%clk 0:00:53.9]} 36...
Kh6 {[%clk 0:00:46.3]} 37. Be2 {[%clk 0:00:53.7]} 1-0

[Event "*** Titled Tuesday Blitz"]
[Site "Chess.com"]
[Date "2020.05.19"]
[Round "1"]
[White "Sam_ChessMood"]
[Black "vova-79"]
[Result "1-0"]
[WhiteElo "2881"]
[BlackElo "2445"]
[TimeControl "180+1"]
[EndTime "12:06:08 PDT"]
[Termination "Sam_ChessMood won by resignation"]

1. e4 {[%clk 0:02:59.2]} 1... e6 {[%clk 0:02:53.3]} 2. d4 {[%clk 0:02:58.7]}
2... d5 {[%clk 0:02:52.6]} 3. Nc3 {[%clk 0:02:59.5]} 3... dxe4 {[%clk
0:02:52.3]} 4. Nxe4 {[%clk 0:02:59.8]} 4... Nd7 {[%clk 0:02:52.8]} 5. Nf3 {[%clk
0:02:55.9]} 5... Ngf6 {[%clk 0:02:53.7]} 6. Nxf6+ {[%clk 0:02:54.5]} 6... Nxf6
{[%clk 0:02:52.5]} 7. Bg5 {[%clk 0:02:52.5]} 7... h6 {[%clk 0:02:51.6]} 8. Be3
{[%clk 0:02:52.2]} 8... Bd6 {[%clk 0:02:50.5]} 9. Bd3 {[%clk 0:02:51.4]} 9...
O-O {[%clk 0:02:48.7]} 10. Qe2 {[%clk 0:02:51.8]} 10... b6 {[%clk 0:02:47]} 11.
O-O-O {[%clk 0:02:51.9]} 11... Bb7 {[%clk 0:02:46.8]} 12. Kb1 {[%clk 0:02:50.8]}
12... Qe7 {[%clk 0:02:39.3]} 13. Rhg1 {[%clk 0:02:36]} 13... c5 {[%clk
0:02:37.1]} 14. g4 {[%clk 0:02:19.2]} 14... cxd4 {[%clk 0:02:36.3]} 15. Bxd4
{[%clk 0:02:03.7]} 15... Nd5 {[%clk 0:02:34.8]} 16. g5 {[%clk 0:02:01.7]} 16...
Nf4 {[%clk 0:02:31.1]} 17. gxh6 {[%clk 0:02:01.6]} 17... g6 {[%clk 0:02:20]} 18.
Qe3 {[%clk 0:01:54.9]} 18... Bxf3 {[%clk 0:01:44.6]} 19. Qxf3 {[%clk 0:01:51.2]}
19... Kh7 {[%clk 0:01:27.7]} 20. h4 {[%clk 0:01:25.9]} 20... e5 {[%clk 0:01:25]}
21. Bc3 {[%clk 0:01:21.2]} 21... Nxd3 {[%clk 0:01:12.2]} 22. Qxd3 {[%clk
0:01:14.5]} 22... Rad8 {[%clk 0:01:10.4]} 23. h5 {[%clk 0:01:14.2]} 23... Qe6
{[%clk 0:00:57.9]} 24. Qe4 {[%clk 0:01:02.4]} 24... Rg8 {[%clk 0:00:47.3]} 25.
a4 {[%clk 0:00:49.5]} 25... f5 {[%clk 0:00:32.6]} 26. hxg6+ {[%clk 0:00:44.8]}
26... Rxg6 {[%clk 0:00:31.7]} 27. Rxg6 {[%clk 0:00:44.8]} 27... Kxg6 {[%clk
0:00:28.2]} 28. Qg2+ {[%clk 0:00:44.3]} 1-0

[Event "*** Titled Tuesday Blitz"]
[Site "Chess.com"]
[Date "2020.05.19"]
[Round "1"]
[White "rdclayton"]
[Black "12teen"]
[Result "0-1"]
[WhiteElo "2400"]
[BlackElo "2748"]
[TimeControl "180+1"]
[EndTime "12:06:12 PDT"]
[Termination "12teen won by checkmate"]

1. e4 {[%clk 0:03:00.9]} 1... a6 {[%clk 0:02:55.3]} 2. d4 {[%clk 0:03:00.2]}
2... b5 {[%clk 0:02:56]} 3. a4 {[%clk 0:02:59.5]} 3... Bb7 {[%clk 0:02:55.5]} 4.
Bd3 {[%clk 0:02:58]} 4... e6 {[%clk 0:02:54.3]} 5. f3 {[%clk 0:02:57.6]} 5... d5
{[%clk 0:02:42.6]} 6. exd5 {[%clk 0:02:52.5]} 6... Bxd5 {[%clk 0:02:26.3]} 7.
axb5 {[%clk 0:02:36.9]} 7... Bd6 {[%clk 0:02:17.6]} 8. Ne2 {[%clk 0:02:30.4]}
8... Qh4+ {[%clk 0:02:14.7]} 9. g3 {[%clk 0:02:29.5]} 9... Qh3 {[%clk
0:02:15.1]} 10. Bf4 {[%clk 0:02:10]} 10... Bxf3 {[%clk 0:02:06.3]} 11. Rf1
{[%clk 0:02:08.6]} 11... Bb7 {[%clk 0:01:53.1]} 12. Rf2 {[%clk 0:01:53.8]} 12...
Nf6 {[%clk 0:01:51]} 13. Bxd6 {[%clk 0:01:46.4]} 13... cxd6 {[%clk 0:01:46.6]}
14. bxa6 {[%clk 0:01:41.3]} 14... Nxa6 {[%clk 0:01:45.3]} 15. Nf4 {[%clk
0:01:31.6]} 15... Qh6 {[%clk 0:01:40.9]} 16. Bb5+ {[%clk 0:01:30]} 16... Ke7
{[%clk 0:01:36.6]} 17. Nc3 {[%clk 0:01:26.6]} 17... Nb4 {[%clk 0:01:32.1]} 18.
Rxa8 {[%clk 0:00:41.9]} 18... Rxa8 {[%clk 0:01:33]} 19. d5 {[%clk 0:00:24]}
19... Nbxd5 {[%clk 0:01:27.3]} 20. Ncxd5+ {[%clk 0:00:23.3]} 20... Nxd5 {[%clk
0:01:26.8]} 21. Nxd5+ {[%clk 0:00:23.5]} 21... Bxd5 {[%clk 0:01:27.3]} 22. c4
{[%clk 0:00:22.9]} 22... Qe3+ {[%clk 0:01:21.5]} 23. Kf1 {[%clk 0:00:20.4]}
23... Be4 {[%clk 0:01:20.1]} 24. b4 {[%clk 0:00:03.9]} 24... Ra3 {[%clk
0:01:16]} 25. c5 {[%clk 0:00:03]} 25... d5 {[%clk 0:01:00.4]} 26. Re2 {[%clk
0:00:02.8]} 26... Qf3+ {[%clk 0:00:57.5]} 27. Ke1 {[%clk 0:00:02.4]} 27... Qc3+
{[%clk 0:00:56]} 28. Qd2 {[%clk 0:00:01.5]} 28... Ra1+ {[%clk 0:00:54.4]} 29.
Kf2 {[%clk 0:00:02]} 29... Qf3# {[%clk 0:00:54.7]} 0-1

[Event "*** Titled Tuesday Blitz"]
[Site "Chess.com"]
[Date "2020.05.19"]
[Round "1"]
[White "vugarrasulov"]
[Black "Treacherous_horse64"]
[Result "1-0"]
[WhiteElo "2823"]
[BlackElo "2424"]
[TimeControl "180+1"]
[EndTime "12:06:14 PDT"]
[Termination "vugarrasulov won on time"]

1. e4 {[%clk 0:03:00.9]} 1... c6 {[%clk 0:02:33.6]} 2. d4 {[%clk 0:02:59.4]}
2... d5 {[%clk 0:02:34.5]} 3. e5 {[%clk 0:02:59.3]} 3... Bf5 {[%clk 0:02:34.6]}
4. h4 {[%clk 0:02:58.7]} 4... h5 {[%clk 0:02:34.5]} 5. c4 {[%clk 0:02:57.8]}
5... Na6 {[%clk 0:02:33.9]} 6. a3 {[%clk 0:02:53.7]} 6... dxc4 {[%clk
0:02:30.2]} 7. Bxc4 {[%clk 0:02:51.1]} 7... e6 {[%clk 0:02:28.4]} 8. Nc3 {[%clk
0:02:50]} 8... Ne7 {[%clk 0:02:08.7]} 9. Nge2 {[%clk 0:02:48.5]} 9... Nc7 {[%clk
0:01:57.5]} 10. Ng3 {[%clk 0:02:47.4]} 10... Bg6 {[%clk 0:01:50.7]} 11. Nge4
{[%clk 0:02:46.3]} 11... Nf5 {[%clk 0:01:40.9]} 12. Bg5 {[%clk 0:02:40]} 12...
Be7 {[%clk 0:01:31.5]} 13. Qd2 {[%clk 0:02:22.5]} 13... Qd7 {[%clk 0:01:15.6]}
14. O-O-O {[%clk 0:02:20.4]} 14... O-O-O {[%clk 0:01:09.2]} 15. Nc5 {[%clk
0:02:12.9]} 15... Bxc5 {[%clk 0:00:28.6]} 16. Bxd8 {[%clk 0:02:11.9]} 16... Qxd4
{[%clk 0:00:13.3]} 17. Qxd4 {[%clk 0:02:07.6]} 17... Bxd4 {[%clk 0:00:12]} 18.
Bxc7 {[%clk 0:02:07.8]} 18... Kxc7 {[%clk 0:00:12.9]} 19. Rd2 {[%clk 0:02:00.1]}
19... Bxe5 {[%clk 0:00:12.6]} 20. Ne2 {[%clk 0:02:00.5]} 20... Nd6 {[%clk
0:00:10.5]} 21. Bd3 {[%clk 0:02:00.2]} 21... Nf5 {[%clk 0:00:07.3]} 22. g3
{[%clk 0:01:56.5]} 22... b5 {[%clk 0:00:04.4]} 23. Rhd1 {[%clk 0:01:56.6]} 23...
a5 {[%clk 0:00:04.4]} 24. Bxf5 {[%clk 0:01:51.4]} 24... Bxf5 {[%clk 0:00:05]}
25. Rd7+ {[%clk 0:01:51.8]} 25... Kb6 {[%clk 0:00:05.5]} 26. Rxf7 {[%clk
0:01:52.3]} 26... b4 {[%clk 0:00:04]} 27. a4 {[%clk 0:01:50.1]} 27... Kc5 {[%clk
0:00:03.3]} 28. Ra7 {[%clk 0:01:39.7]} 28... Kc4 {[%clk 0:00:02.6]} 29. Rxa5
{[%clk 0:01:40]} 29... b3 {[%clk 0:00:02.7]} 30. Rxe5 {[%clk 0:01:39.3]} 1-0

[Event "*** Titled Tuesday Blitz"]
[Site "Chess.com"]
[Date "2020.05.19"]
[Round "1"]
[White "jefferyx"]
[Black "Kavyev_Ruslan"]
[Result "1-0"]
[WhiteElo "2944"]
[BlackElo "2456"]
[TimeControl "180+1"]
[EndTime "12:06:16 PDT"]
[Termination "jefferyx won by resignation"]

1. d4 {[%clk 0:02:59.8]} 1... Nf6 {[%clk 0:02:59]} 2. c4 {[%clk 0:03:00.2]} 2...
g6 {[%clk 0:02:59.3]} 3. Nc3 {[%clk 0:02:59.5]} 3... d5 {[%clk 0:02:59.7]} 4.
Nf3 {[%clk 0:02:59.5]} 4... Bg7 {[%clk 0:02:59.6]} 5. Bf4 {[%clk 0:03:00]} 5...
O-O {[%clk 0:02:59.3]} 6. Rc1 {[%clk 0:03:00.6]} 6... c5 {[%clk 0:02:58.9]} 7.
dxc5 {[%clk 0:02:59.6]} 7... Qa5 {[%clk 0:02:52.2]} 8. cxd5 {[%clk 0:02:59.6]}
8... Rd8 {[%clk 0:02:52.1]} 9. Qd2 {[%clk 0:02:32.8]} 9... Na6 {[%clk
0:02:37.6]} 10. e4 {[%clk 0:02:16.9]} 10... Nxc5 {[%clk 0:02:36.8]} 11. Be2
{[%clk 0:02:16.6]} 11... b6 {[%clk 0:02:16.5]} 12. Nd4 {[%clk 0:01:54.6]} 12...
Bb7 {[%clk 0:02:08.5]} 13. f3 {[%clk 0:01:51.4]} 13... e6 {[%clk 0:02:04.6]} 14.
Nc2 {[%clk 0:01:41.7]} 14... Na6 {[%clk 0:01:27.5]} 15. a3 {[%clk 0:01:41.5]}
15... b5 {[%clk 0:01:26.1]} 16. d6 {[%clk 0:01:31.1]} 16... b4 {[%clk
0:01:17.9]} 17. Nb5 {[%clk 0:01:28.8]} 17... Nh5 {[%clk 0:01:09.4]} 18. axb4
{[%clk 0:01:28.6]} 18... Qa2 {[%clk 0:01:05.6]} 19. Bg5 {[%clk 0:01:28.7]} 19...
Rd7 {[%clk 0:01:02.7]} 20. O-O {[%clk 0:01:25.7]} 20... Qxb2 {[%clk 0:00:58.9]}
21. g4 {[%clk 0:01:13.3]} 21... Nf6 {[%clk 0:00:57.7]} 22. Rb1 {[%clk
0:01:13.3]} 22... Qe5 {[%clk 0:00:56.9]} 23. Bf4 {[%clk 0:01:11]} 23... Nxe4
{[%clk 0:00:55.6]} 24. fxe4 {[%clk 0:01:11.5]} 24... Qxe4 {[%clk 0:00:56.5]} 25.
Bf3 {[%clk 0:01:12.1]} 25... Qc4 {[%clk 0:00:51.4]} 26. Nca3 {[%clk 0:01:11.4]}
26... Qc8 {[%clk 0:00:48.3]} 27. Rbc1 {[%clk 0:01:11.3]} 27... Qd8 {[%clk
0:00:48.2]} 28. Bxb7 {[%clk 0:00:58.3]} 28... Rxb7 {[%clk 0:00:49.1]} 29. Nc7
{[%clk 0:00:58.5]} 29... Nxc7 {[%clk 0:00:35.6]} 30. dxc7 {[%clk 0:00:59.4]}
30... Bd4+ {[%clk 0:00:36.4]} 31. Kh1 {[%clk 0:00:56.3]} 31... Qd5+ {[%clk
0:00:33.4]} 32. Qg2 {[%clk 0:00:56.2]} 32... Qxg2+ {[%clk 0:00:33.3]} 33. Kxg2
{[%clk 0:00:57.1]} 33... Rc8 {[%clk 0:00:34.1]} 34. Rfd1 {[%clk 0:00:51.9]}
34... Bb6 {[%clk 0:00:32.5]} 35. Nb5 {[%clk 0:00:50.5]} 35... a6 {[%clk
0:00:27.9]} 36. Nd6 {[%clk 0:00:50.7]} 36... Rbxc7 {[%clk 0:00:28.3]} 37. Nxc8
{[%clk 0:00:50.8]} 1-0

[Event "*** Titled Tuesday Blitz"]
[Site "Chess.com"]
[Date "2020.05.19"]
[Round "1"]
[White "alenee"]
[Black "Evgeny81"]
[Result "0-1"]
[WhiteElo "2388"]
[BlackElo "2732"]
[TimeControl "180+1"]
[EndTime "12:06:16 PDT"]
[Termination "Evgeny81 won on time"]

1. e4 {[%clk 0:02:54]} 1... e6 {[%clk 0:03:00.9]} 2. d4 {[%clk 0:02:52.7]} 2...
d5 {[%clk 0:03:01.4]} 3. exd5 {[%clk 0:02:53.4]} 3... exd5 {[%clk 0:03:01.3]} 4.
Nf3 {[%clk 0:02:54.3]} 4... Nc6 {[%clk 0:03:00.4]} 5. Bd3 {[%clk 0:02:54.8]}
5... Bg4 {[%clk 0:03:00.2]} 6. c3 {[%clk 0:02:55.4]} 6... Qd7 {[%clk 0:03:00.1]}
7. O-O {[%clk 0:02:55.6]} 7... O-O-O {[%clk 0:02:59.9]} 8. b4 {[%clk 0:02:55.6]}
8... Bd6 {[%clk 0:02:57.9]} 9. Nbd2 {[%clk 0:02:52.9]} 9... Nf6 {[%clk 0:02:54]}
10. a4 {[%clk 0:02:44.3]} 10... h5 {[%clk 0:02:49.5]} 11. a5 {[%clk 0:02:43.7]}
11... h4 {[%clk 0:02:48]} 12. b5 {[%clk 0:02:24.5]} 12... Ne7 {[%clk 0:02:46.9]}
13. b6 {[%clk 0:02:22.8]} 13... a6 {[%clk 0:02:38.5]} 14. Qb3 {[%clk 0:01:46.5]}
14... Ng6 {[%clk 0:02:11.4]} 15. c4 {[%clk 0:01:30.9]} 15... c6 {[%clk
0:01:54.5]} 16. Bxg6 {[%clk 0:01:15.7]} 16... fxg6 {[%clk 0:01:49.3]} 17. cxd5
{[%clk 0:01:14.6]} 17... Nxd5 {[%clk 0:01:47.7]} 18. Ne4 {[%clk 0:01:14.7]}
18... h3 {[%clk 0:01:33.4]} 19. g3 {[%clk 0:00:56.9]} 19... Rdf8 {[%clk
0:01:28.7]} 20. Ne5 {[%clk 0:00:52.4]} 20... Bxe5 {[%clk 0:01:27.6]} 21. dxe5
{[%clk 0:00:52.1]} 21... Rf3 {[%clk 0:01:10]} 22. Qc4 {[%clk 0:00:40.8]} 22...
Kb8 {[%clk 0:01:09.7]} 23. Bg5 {[%clk 0:00:33.5]} 23... Qf5 {[%clk 0:01:07.1]}
24. Rad1 {[%clk 0:00:23]} 24... Ra3 {[%clk 0:00:51.7]} 0-1

[Event "*** Titled Tuesday Blitz"]
[Site "Chess.com"]
[Date "2020.05.19"]
[Round "1"]
[White "Alopekos"]
[Black "LiemLe"]
[Result "0-1"]
[WhiteElo "2457"]
[BlackElo "2970"]
[TimeControl "180+1"]
[EndTime "12:06:18 PDT"]
[Termination "LiemLe won on time"]

1. e4 {[%clk 0:03:00.3]} 1... e5 {[%clk 0:02:59.3]} 2. Nf3 {[%clk 0:02:59.7]}
2... Nc6 {[%clk 0:02:59.8]} 3. Bb5 {[%clk 0:02:59.5]} 3... a6 {[%clk 0:02:59.9]}
4. Ba4 {[%clk 0:02:59.6]} 4... Nf6 {[%clk 0:02:59.6]} 5. O-O {[%clk 0:03:00.1]}
5... Bc5 {[%clk 0:03:00.1]} 6. Nxe5 {[%clk 0:02:52.6]} 6... Nxe5 {[%clk
0:02:56.5]} 7. d4 {[%clk 0:02:52.5]} 7... b5 {[%clk 0:02:51.4]} 8. dxe5 {[%clk
0:02:05.3]} 8... Nxe4 {[%clk 0:02:50.9]} 9. Bb3 {[%clk 0:00:46.3]} 9... O-O
{[%clk 0:02:04.4]} 10. Bd5 {[%clk 0:00:41.2]} 10... Nxf2 {[%clk 0:02:04.3]} 11.
Rxf2 {[%clk 0:00:42.1]} 11... c6 {[%clk 0:01:59.1]} 12. Bb3 {[%clk 0:00:30.8]}
12... d5 {[%clk 0:01:29.9]} 13. exd6 {[%clk 0:00:20.6]} 13... Be6 {[%clk
0:01:03]} 14. Nc3 {[%clk 0:00:16.2]} 14... Qh4 {[%clk 0:00:59]} 15. Qf1 {[%clk
0:00:07.9]} 15... Rae8 {[%clk 0:00:54.1]} 16. g3 {[%clk 0:00:04]} 16... Qh5
{[%clk 0:00:35]} 17. Ne2 {[%clk 0:00:02.6]} 17... Bh3 {[%clk 0:00:30.4]} 18. Nf4
{[%clk 0:00:01.5]} 18... Bxf2+ {[%clk 0:00:30.1]} 0-1

[Event "*** Titled Tuesday Blitz"]
[Site "Chess.com"]
[Date "2020.05.19"]
[Round "1"]
[White "enzovsky"]
[Black "MarcoRiehle"]
[Result "0-1"]
[WhiteElo "2330"]
[BlackElo "2630"]
[TimeControl "180+1"]
[EndTime "12:06:18 PDT"]
[Termination "MarcoRiehle won by checkmate"]

1. d4 {[%clk 0:02:59.7]} 1... d5 {[%clk 0:02:59.2]} 2. c4 {[%clk 0:02:58.2]}
2... e6 {[%clk 0:02:54.1]} 3. Nc3 {[%clk 0:02:56.4]} 3... c5 {[%clk 0:02:45]} 4.
cxd5 {[%clk 0:02:52.1]} 4... cxd4 {[%clk 0:02:44.4]} 5. Qa4+ {[%clk 0:02:50.1]}
5... Bd7 {[%clk 0:02:44.1]} 6. Qxd4 {[%clk 0:02:49]} 6... exd5 {[%clk
0:02:44.5]} 7. Qxd5 {[%clk 0:02:48.9]} 7... Nf6 {[%clk 0:02:44.3]} 8. Qd1 {[%clk
0:02:49]} 8... Nc6 {[%clk 0:02:44.1]} 9. Nf3 {[%clk 0:02:48.5]} 9... Bc5 {[%clk
0:02:44.5]} 10. e3 {[%clk 0:02:48]} 10... Qe7 {[%clk 0:02:44.6]} 11. Bd3 {[%clk
0:02:45.3]} 11... O-O-O {[%clk 0:02:44]} 12. Qe2 {[%clk 0:02:44.1]} 12... g5
{[%clk 0:02:41.5]} 13. O-O {[%clk 0:02:34.3]} 13... g4 {[%clk 0:02:37.2]} 14.
Nd4 {[%clk 0:02:17.3]} 14... Rhg8 {[%clk 0:02:32.9]} 15. Nb3 {[%clk 0:02:06.7]}
15... Bd6 {[%clk 0:02:28.5]} 16. e4 {[%clk 0:02:01.4]} 16... Ne5 {[%clk
0:02:21.7]} 17. Be3 {[%clk 0:01:48.6]} 17... Nf3+ {[%clk 0:02:15.7]} 18. Kh1
{[%clk 0:01:45.2]} 18... Nxh2 {[%clk 0:02:15.7]} 19. Bxa7 {[%clk 0:01:28.6]}
19... Nh5 {[%clk 0:02:06.7]} 20. Nb5 {[%clk 0:00:45.4]} 20... Nxf1 {[%clk
0:01:46]} 21. Kg1 {[%clk 0:00:19.4]} 21... Bxb5 {[%clk 0:01:34]} 22. Bxb5 {[%clk
0:00:20.3]} 22... Bc7 {[%clk 0:01:12.1]} 23. Rc1 {[%clk 0:00:09.7]} 23... Qd6
{[%clk 0:00:57.9]} 24. Kxf1 {[%clk 0:00:07.5]} 24... Qh2 {[%clk 0:00:56.9]} 25.
Qc4 {[%clk 0:00:05.8]} 25... Qh1+ {[%clk 0:00:51.9]} 26. Ke2 {[%clk 0:00:06.3]}
26... Nf4+ {[%clk 0:00:52.3]} 27. Ke3 {[%clk 0:00:06.7]} 27... Nxg2+ {[%clk
0:00:52.7]} 28. Ke2 {[%clk 0:00:07.1]} 28... Nf4+ {[%clk 0:00:53]} 29. Ke3
{[%clk 0:00:05.8]} 29... Qf3# {[%clk 0:00:53.3]} 0-1

[Event "*** Titled Tuesday Blitz"]
[Site "Chess.com"]
[Date "2020.05.19"]
[Round "1"]
[White "andriipalchuk"]
[Black "realmadridtv"]
[Result "0-1"]
[WhiteElo "1889"]
[BlackElo "2471"]
[TimeControl "180+1"]
[EndTime "12:06:18 PDT"]
[Termination "realmadridtv won by checkmate"]

1. e4 {[%clk 0:02:59.2]} 1... c5 {[%clk 0:02:59.6]} 2. Nf3 {[%clk 0:02:56.8]}
2... d6 {[%clk 0:02:59.9]} 3. Bb5+ {[%clk 0:02:55]} 3... Bd7 {[%clk 0:02:59.8]}
4. Bxd7+ {[%clk 0:02:54.9]} 4... Nxd7 {[%clk 0:03:00.7]} 5. O-O {[%clk
0:02:53.2]} 5... Ngf6 {[%clk 0:03:01]} 6. Re1 {[%clk 0:02:53.2]} 6... g6 {[%clk
0:03:01.3]} 7. c4 {[%clk 0:02:51.7]} 7... Bg7 {[%clk 0:03:00.4]} 8. Nc3 {[%clk
0:02:52.2]} 8... Ne5 {[%clk 0:02:59.6]} 9. d4 {[%clk 0:02:34.6]} 9... Nxf3+
{[%clk 0:02:58]} 10. gxf3 {[%clk 0:02:35.5]} 10... cxd4 {[%clk 0:02:56.8]} 11.
Qxd4 {[%clk 0:02:36]} 11... O-O {[%clk 0:02:56.3]} 12. Qd3 {[%clk 0:02:35.6]}
12... Nd7 {[%clk 0:02:50.5]} 13. Bf4 {[%clk 0:02:31.8]} 13... Rc8 {[%clk
0:02:46.5]} 14. Rac1 {[%clk 0:02:25.7]} 14... Ne5 {[%clk 0:02:45.8]} 15. Bxe5
{[%clk 0:02:23.8]} 15... Bxe5 {[%clk 0:02:46.4]} 16. b3 {[%clk 0:01:56.4]} 16...
e6 {[%clk 0:02:46.2]} 17. Kg2 {[%clk 0:01:40.6]} 17... Qh4 {[%clk 0:02:39.8]}
18. h3 {[%clk 0:01:38.9]} 18... Rc5 {[%clk 0:02:28.6]} 19. Ne2 {[%clk
0:01:26.1]} 19... Bb2 {[%clk 0:02:15.6]} 20. f4 {[%clk 0:01:11.6]} 20... Bxc1
{[%clk 0:02:10.8]} 21. Rxc1 {[%clk 0:01:12.5]} 21... Rh5 {[%clk 0:02:09.7]} 22.
Rd1 {[%clk 0:01:06]} 22... Rd8 {[%clk 0:02:02.9]} 23. Qg3 {[%clk 0:00:54.2]}
23... Qxg3+ {[%clk 0:01:58.8]} 24. fxg3 {[%clk 0:00:55.1]} 24... Ra5 {[%clk
0:01:58.1]} 25. Nc3 {[%clk 0:00:55.5]} 25... Kf8 {[%clk 0:01:46]} 26. Kf3 {[%clk
0:00:53.7]} 26... Ke7 {[%clk 0:01:46.1]} 27. Rd2 {[%clk 0:00:53]} 27... f5
{[%clk 0:01:45.8]} 28. g4 {[%clk 0:00:51.3]} 28... fxe4+ {[%clk 0:01:45.1]} 29.
Kxe4 {[%clk 0:00:48.5]} 29... g5 {[%clk 0:01:42.4]} 30. fxg5 {[%clk 0:00:41.5]}
30... Rxg5 {[%clk 0:01:42.1]} 31. Kf4 {[%clk 0:00:41.7]} 31... Re5 {[%clk
0:01:39.6]} 32. Nb5 {[%clk 0:00:39.9]} 32... a6 {[%clk 0:01:38.1]} 33. Nd4
{[%clk 0:00:36]} 33... Rf8+ {[%clk 0:01:37.7]} 34. Kg3 {[%clk 0:00:36]} 34...
Re3+ {[%clk 0:01:36.6]} 35. Kh4 {[%clk 0:00:35.8]} 35... Rf6 {[%clk 0:01:33.7]}
36. b4 {[%clk 0:00:21.7]} 36... Rh6+ {[%clk 0:01:29]} 37. Kg5 {[%clk 0:00:21.6]}
37... Rexh3 {[%clk 0:01:25.9]} 38. Re2 {[%clk 0:00:21.7]} 38... Rg6+ {[%clk
0:01:22.8]} 39. Kf4 {[%clk 0:00:21.7]} 39... e5+ {[%clk 0:01:19.8]} 40. Kf5
{[%clk 0:00:19.5]} 40... Rf6+ {[%clk 0:01:14.8]} 41. Kg5 {[%clk 0:00:20.4]}
41... h6# {[%clk 0:01:14.4]} 0-1